fUSD/lending_fUSD_20251201
["ID","MTS","AMOUNT","RATE_DAILY","PERIOD"]
[395276951,1764579046091,-2847.0,0.00016986,2]
[395276952,1764579046101,-153.31902391,0.00016986,2]
[395276953,1764579046111,-166.13320485,0.00016986,2]
[395276954,1764579046121,-258.82276166,0.00016986,2]
[395276955,1764579046130,-150.42787237,0.00016986,2]
[395276956,1764579046139,-190.44237866,0.00016986,2]
[395276957,1764579046149,-255.96291346,0.00016986,2]
[395276958,1764579046158,-181.60520491,0.00016986,2]
[395276959,1764579046168,-150.0,0.00016986,2]
[395276960,1764579046177,-151.79282377,0.00016986,2]
[395276961,1764579046186,-151.2234943,0.00016986,2]
[395276962,1764579046195,-152.43824806,0.00016986,2]
[395276963,1764579046204,-182.17370662,0.00016986,2]
[395276964,1764579046214,-202.34922021,0.00016986,2]
[395276965,1764579046223,-13093.0,0.00016986,2]
[395276966,1764579046233,-858.28092338,0.0001699,2]
[395276967,1764579046242,-858.28092338,0.0001699,2]
[395276968,1764579046251,-500.0,0.00016993,2]
[395276969,1764579046260,-1932.69,0.00016993,2]
[395276970,1764579046269,-151.0,0.00016997,2]
[395276971,1764579046279,-897.54,0.00016998,2]
[395276972,1764579046288,-240.32,0.00016998,2]
[395276973,1764579046297,-500.0,0.00016998,2]
[395276974,1764579046306,-500.0,0.00016998,2]
[395276975,1764579046315,-559.73089187,0.00016999,2]
[395276976,1764579046324,-508.34597355,0.00016999,2]
[395276977,1764579046334,-897.54,0.00016999,2]
[395276978,1764579046343,-897.54,0.00016999,2]
[395276979,1764579046353,-897.54,0.00016999,2]
[395276980,1764579046362,-897.54,0.00016999,2]
[395276981,1764579046371,-897.54,0.00016999,2]
[395276982,1764579046380,-897.54,0.00016999,2]
[395276983,1764579046390,-897.54,0.00016999,2]
[395276984,1764579046399,-897.54,0.00016999,2]
[395276985,1764579046408,-897.54,0.00016999,2]
[395276986,1764579046417,-897.54,0.00016999,2]
[395276987,1764579046426,-897.54,0.00016999,2]
[395276988,1764579046436,-897.54,0.00016999,2]
[395276989,1764579046445,-897.54,0.00016999,2]
[395276990,1764579046455,-897.54,0.00016999,2]
[395276991,1764579046464,-897.54,0.00016999,2]
[395276992,1764579046474,-897.54,0.00016999,2]
[395276993,1764579046483,-897.74,0.00016999,2]
[395276994,1764579046492,-500.0,0.00016999,2]
[395276995,1764579046501,-500.0,0.00016999,2]
[395276996,1764579046511,-500.0,0.00016999,2]
[395276997,1764579046520,-500.0,0.00016999,2]
[395276998,1764579046529,-500.0,0.00016999,2]
[395276999,1764579046538,-400.14865854,0.00016999,2]
[395277000,1764579046547,-1932.69,0.00016999,2]
[395277001,1764579046559,-1932.69,0.00016999,2]
[395277002,1764579046568,-1932.69,0.00016999,2]
[395277003,1764579046578,-1932.69,0.00016999,2]
[395277004,1764579046587,-1932.69,0.00016999,2]
[395277005,1764579046597,-1932.69,0.00016999,2]
[395277006,1764579046608,-1932.69,0.00016999,2]
[395277007,1764579046618,-1932.69,0.00016999,2]
[395277008,1764579046628,-1932.69,0.00016999,2]
[395277009,1764579046640,-1932.69,0.00016999,2]
[395277010,1764579046650,-1932.69,0.00016999,2]
[395277011,1764579046659,-1932.69,0.00016999,2]
[395277012,1764579046668,-1932.69,0.00016999,2]
[395277013,1764579046678,-1932.69,0.00016999,2]
[395277014,1764579046687,-1932.69,0.00016999,2]
[395277015,1764579046696,-1932.69,0.00016999,2]
[395277016,1764579046705,-1932.71,0.00016999,2]
[395277017,1764579046714,-500.0,0.00016999,2]
[395277018,1764579046724,-500.0,0.00016999,2]
[395277019,1764579046735,-240.32,0.00016999,2]
[395277020,1764579046744,-300.0,0.00016999,2]
[395277021,1764579046754,-500.0,0.00016999,2]
[395277022,1764579046764,-500.0,0.00016999,2]
[395277023,1764579046774,-500.0,0.00016999,2]
[395277024,1764579046784,-500.0,0.00016999,2]
[395277025,1764579046793,-419.69746161,0.00016999,2]
[395277026,1764579046802,-300.0,0.00016999,2]
[395277027,1764579046812,-300.0,0.00016999,2]
[395277028,1764579046821,-500.0,0.00016999,2]
[395277029,1764579046830,-500.0,0.00016999,2]
[395277030,1764579046839,-500.0,0.00016999,2]
[395277031,1764579046849,-500.0,0.00016999,2]
[395277032,1764579046859,-500.0,0.00016999,2]
[395277033,1764579046868,-500.0,0.00016999,2]
[395277034,1764579046877,-500.0,0.00016999,2]
[395277035,1764579046887,-168.46189094,0.00016999,2]
[395277036,1764579046896,-219.633,0.00017,2]
[395277037,1764579046906,-250.0,0.00017,2]
[395277038,1764579046915,-154.552,0.00017,2]
[395277039,1764579046925,-68994.95485219,0.00017,2]
[395277040,1764579046935,-1872560.44102131,0.00017,2]
[395277041,1764579046944,-2594422.30624407,0.00017,2]
[395277042,1764579047164,-13609.13575488,0.000169,2]
[395277043,1764579047173,-4768.58858756,0.000169,2]
[395277044,1764579047182,-1064.81065755,0.00017,2]
[395277045,1764579047196,-199245.03861612,0.00017,2]
[395277046,1764579047515,-261.320598,0.000159,2]
[395277047,1764579047527,-84.83770024,0.000159,2]
[395277048,1764579047537,-16070.5852133,0.00017,2]
[395277049,1764579047552,-903.42,0.00017,2]
[395277050,1764579047565,-2710.11827329,0.00017,2]
[395277070,1764579641742,2165.88409256,0.00012,2]
[395277071,1764579660153,2000.0,0.00012,3]
[395277077,1764579907924,1825.47852,7.945e-05,2]
[395277090,1764580231803,-3520.668,0.00012332,2]
[395277091,1764580231812,-178.451,0.00012332,2]
[395277092,1764580231822,-212.95685334,0.00012351,2]
[395277123,1764580232199,-250.0,0.0001237,2]
[395277124,1764580232226,-898.86018848,0.00012406,2]
[395277125,1764580232261,-301.13981152,0.00012406,2]
[395277126,1764580232271,-250.0,0.00012422,2]
[395277127,1764580232280,-606.0,0.00012482,2]
[395277128,1764580232289,-300.0,0.00012482,2]
[395277129,1764580232299,-450.42348552,0.00012573,2]
[395277130,1764580232308,-150.0,0.00012575,2]
[395277131,1764580232317,-672.31,0.00012576,2]
[395277132,1764580232326,-150.0,0.00012576,2]
[395277133,1764580232337,-500.0,0.00012576,2]
[395277134,1764580232346,-150.0,0.00012576,2]
[395277135,1764580232356,-150.0,0.00012576,2]
[395277136,1764580232365,-200.0,0.00012576,2]
[395277137,1764580232374,-151.0,0.00012576,2]
[395277138,1764580232383,-151.0,0.00012576,2]
[395277139,1764580232392,-151.0,0.00012576,2]
[395277140,1764580232402,-151.0,0.00012576,2]
[395277141,1764580232411,-151.0,0.00012576,2]
[395277142,1764580232421,-151.0,0.00012576,2]
[395277143,1764580232431,-151.0,0.00012576,2]
[395277144,1764580232440,-151.0,0.00012576,2]
[395277145,1764580232449,-151.0,0.00012576,2]
[395277146,1764580232459,-151.0,0.00012576,2]
[395277147,1764580232468,-151.0,0.00012576,2]
[395277148,1764580232478,-151.0,0.00012576,2]
[395277149,1764580232487,-500.0,0.00012576,2]
[395277150,1764580232496,-150.60060112,0.00012576,2]
[395277151,1764580232525,-0.39939888,0.00012576,2]
[395277152,1764580232534,-500.0,0.00012576,2]
[395277153,1764580232544,-151.0,0.00012576,2]
[395277154,1764580232553,-500.0,0.00012576,2]
[395277155,1764580232563,-500.0,0.00012576,2]
[395277156,1764580232572,-500.0,0.00012576,2]
[395277157,1764580232581,-500.0,0.00012576,2]
[395277158,1764580232591,-500.0,0.00012576,2]
[395277159,1764580232600,-500.0,0.00012576,2]
[395277160,1764580232609,-500.0,0.00012576,2]
[395277161,1764580232619,-500.0,0.00012576,2]
[395277162,1764580232628,-500.0,0.00012576,2]
[395277163,1764580232638,-500.0,0.00012576,2]
[395277164,1764580232647,-500.0,0.00012576,2]
[395277165,1764580232656,-500.0,0.00012576,2]
[395277166,1764580232666,-500.0,0.00012576,2]
[395277167,1764580232675,-500.0,0.00012576,2]
[395277168,1764580232685,-500.0,0.00012576,2]
[395277169,1764580232695,-500.0,0.00012576,2]
[395277170,1764580232704,-500.0,0.00012576,2]
[395277171,1764580232714,-500.0,0.00012576,2]
[395277172,1764580232723,-500.0,0.00012576,2]
[395277173,1764580232733,-500.0,0.00012576,2]
[395277174,1764580232742,-500.0,0.00012576,2]
[395277175,1764580232751,-395.93903739,0.00012576,2]
[395277176,1764580232763,-104.06096261,0.00012576,2]
[395277177,1764580232772,-500.0,0.00012576,2]
[395277178,1764580232781,-500.0,0.00012576,2]
[395277179,1764580232791,-500.0,0.00012576,2]
[395277180,1764580232800,-500.0,0.00012576,2]
[395277181,1764580232810,-200.0,0.00012576,2]
[395277182,1764580232819,-200.0,0.00012576,2]
[395277183,1764580232829,-548.06994663,0.00012576,2]
[395277184,1764580232838,-10887.30860394,0.00012673,2]
[395277185,1764580232848,-150.0,0.00012713,2]
[395277186,1764580232857,-500.0,0.00012713,2]
[395277187,1764580232867,-150.0,0.00012713,2]
[395277188,1764580232876,-3944.77,0.00012773,2]
[395277189,1764580232885,-7381.55,0.00012773,2]
[395277190,1764580232895,-4938.23913636,0.00012773,2]
[395277191,1764580237814,-150.0,0.00012576,2]
[395277192,1764580237824,-150.0,0.00012576,2]
[395277193,1764580237833,-150.0,0.00012713,2]
[395277194,1764580237843,-150.0,0.00012713,2]
[395277195,1764580237852,-2675.40696767,0.00012773,2]
[395277196,1764580237925,-2386.34389597,0.00012773,2]
[395277197,1764580237935,-4549.07,0.00012773,2]
[395277198,1764580237944,-200.0,0.0001285,2]
[395277199,1764580237955,-500.0,0.0001285,2]
[395277200,1764580237965,-150.0,0.0001285,2]
[395277201,1764580237982,-200.0,0.0001285,2]
[395277202,1764580237992,-200.0,0.0001285,2]
[395277203,1764580238003,-672.31,0.0001285,2]
[395277204,1764580238013,-999.99,0.00012873,2]
[395277205,1764580238024,-150.99,0.00012873,2]
[395277206,1764580238034,-500.0,0.00012873,2]
[395277207,1764580238044,-500.0,0.00012873,2]
[395277208,1764580238055,-533.62010265,0.00012873,2]
[395277209,1764580238066,-500.0,0.00012873,2]
[395277210,1764580238076,-500.54491055,0.00012873,2]
[395277211,1764580238090,-237.32118483,0.00012873,2]
[395277212,1764580238111,-500.0,0.00012873,2]
[395277213,1764580238121,-500.0,0.00012873,2]
[395277214,1764580238138,-3279.17189253,0.00012965,2]
[395277215,1764580238152,-4238.02224119,0.00012965,2]
[395277216,1764580238199,-1275.28228209,0.00012965,2]
[395277218,1764580238285,-4130.41237825,0.00012965,2]
[395277219,1764580238296,-500.0,0.00012987,2]
[395277220,1764580238306,-150.0,0.00012987,2]
[395277221,1764580238315,-500.0,0.00013124,2]
[395277222,1764580238325,-150.0,0.00013124,2]
[395277223,1764580238335,-672.31,0.00013124,2]
[395277224,1764580238344,-200.0,0.00013124,2]
[395277225,1764580238354,-1000.0,0.0001318,2]
[395277226,1764580238364,-1500.0,0.00013211,2]
[395277228,1764580238375,-500.0,0.00013261,2]
[395277229,1764580238384,-227.0,0.00013261,2]
[395277230,1764580238395,-296.0,0.00013398,2]
[395277231,1764580238404,-672.31,0.00013398,2]
[395277233,1764580238414,-501.00569167,0.00013421,2]
[395277234,1764580238423,-1000.0,0.00013421,2]
[395277236,1764580238434,-415.43921071,0.00013421,2]
[395277237,1764580238443,-250.0,0.00013542,2]
[395277238,1764580238453,-250.0,0.00013565,2]
[395277239,1764580238462,-193.0,0.00013565,2]
[395277241,1764580238476,-1680.0,0.00013647,2]
[395277242,1764580238487,-255.0,0.00013669,2]
[395277243,1764580238497,-672.31,0.00013672,2]
[395277244,1764580238507,-420.0,0.00013696,2]
[395277245,1764580238516,-500.0,0.00013698,2]
[395277246,1764580238526,-500.0,0.00013698,2]
[395277247,1764580238536,-500.0,0.00013698,2]
[395277248,1764580238545,-500.0,0.00013698,2]
[395277249,1764580238881,-500.0,0.00013698,2]
[395277250,1764580238901,-343.88,0.00013698,2]
[395277251,1764580238912,-500.0,0.00013698,2]
[395277252,1764580238923,-500.0,0.00013698,2]
[395277253,1764580238934,-500.0,0.00013698,2]
[395277254,1764580238944,-500.0,0.00013698,2]
[395277255,1764580238954,-2776.84,0.00013698,2]
[395277256,1764580238965,-2776.84,0.00013698,2]
[395277257,1764580238975,-2776.84,0.00013698,2]
[395277258,1764580238985,-2776.84,0.00013698,2]
[395277259,1764580238998,-500.0,0.00013698,2]
[395277260,1764580239009,-500.0,0.00013698,2]
[395277261,1764580239019,-500.0,0.00013698,2]
[395277262,1764580239029,-500.0,0.00013698,2]
[395277263,1764580239038,-532.1,0.00013698,2]
[395277264,1764580239048,-532.1,0.00013698,2]
[395277265,1764580239057,-532.1,0.00013698,2]
[395277266,1764580239068,-532.1,0.00013698,2]
[395277267,1764580239078,-500.0,0.00013698,2]
[395277268,1764580239089,-269.91867043,0.00013698,2]
[395277269,1764580239099,-500.0,0.00013698,2]
[395277270,1764580239109,-500.0,0.00013698,2]
[395277271,1764580239119,-500.0,0.00013698,2]
[395277272,1764580239131,-500.0,0.00013698,2]
[395277273,1764580239141,-500.0,0.00013698,2]
[395277274,1764580239151,-500.0,0.00013698,2]
[395277275,1764580239162,-500.0,0.00013698,2]
[395277276,1764580239172,-500.0,0.00013698,2]
[395277277,1764580239181,-500.0,0.00013698,2]
[395277278,1764580239191,-500.0,0.00013698,2]
[395277279,1764580239201,-500.0,0.00013698,2]
[395277280,1764580239210,-500.0,0.00013698,2]
[395277281,1764580239220,-528.91,0.00013698,2]
[395277282,1764580239229,-528.91,0.00013698,2]
[395277283,1764580239240,-528.91,0.00013698,2]
[395277284,1764580239249,-500.0,0.00013698,2]
[395277285,1764580239258,-500.0,0.00013698,2]
[395277286,1764580239268,-500.0,0.00013698,2]
[395277287,1764580239277,-500.0,0.00013698,2]
[395277288,1764580239286,-500.0,0.00013698,2]
[395277289,1764580239296,-500.0,0.00013698,2]
[395277290,1764580239305,-500.0,0.00013698,2]
[395277291,1764580239314,-500.0,0.00013698,2]
[395277292,1764580239324,-500.0,0.00013698,2]
[395277293,1764580239333,-500.0,0.00013698,2]
[395277294,1764580239343,-500.0,0.00013698,2]
[395277295,1764580239353,-163.01493173,0.00013698,2]
[395277296,1764580239363,-500.0,0.00013698,2]
[395277297,1764580239374,-500.0,0.00013698,2]
[395277298,1764580239383,-500.0,0.00013698,2]
[395277299,1764580239392,-500.0,0.00013698,2]
[395277300,1764580239401,-500.0,0.00013698,2]
[395277301,1764580239410,-500.0,0.00013698,2]
[395277302,1764580239419,-500.0,0.00013698,2]
[395277303,1764580239428,-530.10808563,0.00013698,2]
[395277304,1764580239437,-500.0,0.00013698,2]
[395277305,1764580239446,-500.0,0.00013698,2]
[395277306,1764580239455,-500.0,0.00013698,2]
[395277307,1764580239465,-500.0,0.00013698,2]
[395277308,1764580239474,-500.0,0.00013698,2]
[395277309,1764580239484,-500.0,0.00013698,2]
[395277310,1764580239493,-212.66437805,0.00013698,2]
[395277311,1764580239503,-150.0,0.00013698,2]
[395277312,1764580239512,-150.0,0.00013698,2]
[395277313,1764580239521,-150.0,0.00013698,2]
[395277314,1764580239531,-150.0,0.00013698,2]
[395277315,1764580239540,-500.0,0.00013698,2]
[395277316,1764580239549,-500.0,0.00013698,2]
[395277317,1764580239558,-500.0,0.00013698,2]
[395277318,1764580239567,-1088.54,0.00013698,2]
[395277319,1764580239576,-1088.54,0.00013698,2]
[395277320,1764580239585,-1088.54,0.00013698,2]
[395277321,1764580239594,-500.0,0.00013698,2]
[395277322,1764580239603,-500.0,0.00013698,2]
[395277323,1764580239612,-500.0,0.00013698,2]
[395277325,1764580239621,-166.66,0.00013699,2]
[395277326,1764580239630,-638.99034369,0.00013699,2]
[395277327,1764580239639,-156.69183458,0.00013699,2]
[395277328,1764580239648,-1093.95298369,0.00013729,2]
[395277329,1764580239658,-150.0,0.00013835,2]
[395277330,1764580239667,-150.0,0.00013835,2]
[395277331,1764580239676,-150.0,0.00013835,2]
[395277332,1764580239685,-150.0,0.00013835,2]
[395277333,1764580239694,-166.66,0.00013836,2]
[395277334,1764580239703,-930.0,0.00013841,2]
[395277335,1764580239712,-672.33,0.00013946,2]
[395277336,1764580239721,-1500.0,0.00013968,2]
[395277337,1764580239730,-166.66,0.00013973,2]
[395277338,1764580239740,-930.0,0.00013978,2]
[395277339,1764580239750,-726.0,0.00013999,2]
[395277340,1764580239759,-166.66,0.0001411,2]
[395277341,1764580239768,-930.0,0.00014115,2]
[395277342,1764580239777,-5607.3213846,0.00014118,2]
[395277343,1764580239786,-769.0,0.00014218,2]
[395277344,1764580239795,-166.66,0.00014247,2]
[395277345,1764580239804,-1542.0,0.00014247,2]
[395277346,1764580239813,-930.0,0.00014252,2]
[395277347,1764580239822,-4094.572523,0.00014298,2]
[395277348,1764580239837,-6792.7360809,0.00014298,2]
[395277349,1764580239847,-453.0,0.00014359,2]
[395277350,1764580239856,-166.66,0.00014384,2]
[395277351,1764580239867,-930.0,0.00014389,2]
[395277352,1764580239877,-953.59214279,0.00014487,2]
[395277353,1764580240135,-387.55662165,0.00012964,2]
[395277354,1764580240147,-112.44337835,0.00012964,2]
[395277355,1764580240157,-159.84792901,0.00012964,2]
[395277356,1764580240166,-46.40785721,0.00014487,2]
[395277357,1764580240175,-2000.0,0.00014516,2]
[395277358,1764580240185,-151.0,0.00014521,2]
[395277359,1764580240194,-930.0,0.00014526,2]
[395277361,1764580240203,-930.0,0.00014663,2]
[395277362,1764580240213,-930.0,0.000148,2]
[395277363,1764580240223,-210.0,0.00014862,2]
[395277364,1764580240233,-433.0,0.00014864,2]
[395277365,1764580240242,-384.0,0.00014891,2]
[395277366,1764580240251,-1474.0,0.00014921,2]
[395277368,1764580240261,-930.0,0.00014937,2]
[395277369,1764580240270,-1135.0,0.00014951,2]
[395277370,1764580240279,-2351.0,0.00015011,2]
[395277371,1764580240288,-587.0,0.00015028,2]
[395277372,1764580240298,-2500.0,0.00015064,2]
[395277373,1764580240307,-151.0,0.00015069,2]
[395277374,1764580240316,-930.0,0.00015074,2]
[395277375,1764580240324,-506.79919334,0.00015152,2]
[395277376,1764580240334,-930.0,0.00015211,2]
[395277377,1764580240343,-151.0,0.00015249,2]
[395277378,1764580240352,-1328.07662834,0.00015252,2]
[395277379,1764580240361,-646.65982734,0.00015252,2]
[395277380,1764580240371,-160.0,0.00015252,2]
[395277381,1764580240380,-6485.44053371,0.00015252,2]
[395277382,1764580240389,-248.71531821,0.00015252,2]
[395277383,1764580240398,-151.0,0.00015252,2]
[395277384,1764580240408,-8000.0,0.00015252,2]
[395277385,1764580240417,-1500.0,0.00015252,2]
[395277386,1764580240426,-8000.0,0.00015252,2]
[395277387,1764580240435,-1500.0,0.00015252,2]
[395277388,1764580240444,-8000.0,0.00015252,2]
[395277389,1764580240454,-1500.0,0.00015252,2]
[395277390,1764580240463,-8000.0,0.00015252,2]
[395277391,1764580240473,-1500.0,0.00015252,2]
[395277392,1764580240482,-8000.0,0.00015252,2]
[395277393,1764580240491,-514.84070869,0.00015252,2]
[395277394,1764580240501,-1500.0,0.00015252,2]
[395277395,1764580240510,-8000.0,0.00015252,2]
[395277396,1764580240520,-187.78006525,0.00015252,2]
[395277397,1764580240529,-1500.0,0.00015252,2]
[395277398,1764580240538,-8000.0,0.00015252,2]
[395277399,1764580240547,-151.0,0.00015252,2]
[395277400,1764580240556,-1500.0,0.00015252,2]
[395277401,1764580240565,-8000.0,0.00015252,2]
[395277402,1764580240575,-1500.0,0.00015252,2]
[395277403,1764580240584,-8000.0,0.00015252,2]
[395277404,1764580240593,-1500.0,0.00015252,2]
[395277405,1764580240602,-8000.0,0.00015252,2]
[395277406,1764580240611,-1500.0,0.00015252,2]
[395277407,1764580240620,-8000.0,0.00015252,2]
[395277408,1764580240628,-250.0,0.00015252,2]
[395277409,1764580240638,-151.0,0.00015252,2]
[395277410,1764580240646,-1500.0,0.00015252,2]
[395277411,1764580240655,-8000.0,0.00015252,2]
[395277412,1764580240664,-250.0,0.00015252,2]
[395277413,1764580240673,-10000.0,0.00015252,2]
[395277414,1764580240681,-559.7798745,0.00015252,2]
[395277415,1764580240690,-2148.05773878,0.00015252,2]
[395277416,1764580240699,-151.0,0.00015252,2]
[395277417,1764580240708,-10000.0,0.00015252,2]
[395277418,1764580240717,-156.587,0.00015252,2]
[395277419,1764580240727,-10000.0,0.00015252,2]
[395277420,1764580240736,-162.380719,0.00015252,2]
[395277421,1764580240745,-10000.0,0.00015252,2]
[395277422,1764580240754,-151.48487804,0.00015252,2]
[395277423,1764580240763,-10000.0,0.00015252,2]
[395277424,1764580240772,-10000.0,0.00015252,2]
[395277425,1764580240782,-10000.0,0.00015252,2]
[395277426,1764580240791,-10000.0,0.00015252,2]
[395277427,1764580240800,-10000.0,0.00015252,2]
[395277428,1764580240810,-10000.0,0.00015252,2]
[395277429,1764580240819,-10000.0,0.00015252,2]
[395277430,1764580240830,-1000.0,0.00015252,2]
[395277431,1764580240839,-10000.0,0.00015252,2]
[395277432,1764580240848,-250.0,0.00015252,2]
[395277433,1764580240858,-3300.0,0.00015252,2]
[395277434,1764580240867,-151.0,0.00015252,2]
[395277435,1764580240876,-1000.0,0.00015252,2]
[395277436,1764580240886,-10000.0,0.00015252,2]
[395277437,1764580240895,-250.0,0.00015252,2]
[395277438,1764580240904,-1000.0,0.00015252,2]
[395277439,1764580240917,-10000.0,0.00015252,2]
[395277440,1764580240926,-250.0,0.00015252,2]
[395277441,1764580240936,-1000.0,0.00015252,2]
[395277442,1764580240945,-250.0,0.00015252,2]
[395277443,1764580240955,-2500.0,0.00015252,2]
[395277444,1764580240964,-1000.0,0.00015252,2]
[395277445,1764580240974,-354.84418245,0.00015252,2]
[395277446,1764580240984,-2500.0,0.00015252,2]
[395277447,1764580240994,-1000.0,0.00015252,2]
[395277448,1764580241003,-2500.0,0.00015252,2]
[395277449,1764580241012,-1000.0,0.00015252,2]
[395277450,1764580241022,-2500.0,0.00015252,2]
[395277451,1764580241031,-762.94247186,0.00015252,2]
[395277452,1764580241041,-2500.0,0.00015252,2]
[395277453,1764580241050,-1000.0,0.00015252,2]
[395277454,1764580241060,-2500.0,0.00015252,2]
[395277455,1764580241069,-1000.0,0.00015252,2]
[395277456,1764580241078,-2500.0,0.00015252,2]
[395277457,1764580241088,-1000.0,0.00015252,2]
[395277458,1764580241097,-2500.0,0.00015252,2]
[395277459,1764580241107,-187.78006525,0.00015252,2]
[395277460,1764580241117,-2500.0,0.00015252,2]
[395277461,1764580241126,-1000.0,0.00015252,2]
[395277462,1764580241135,-620.0,0.00015252,2]
[395277463,1764580241145,-2500.0,0.00015252,2]
[395277464,1764580241154,-1000.0,0.00015252,2]
[395277465,1764580241163,-1000.0,0.00015252,2]
[395277466,1764580241172,-2500.0,0.00015252,2]
[395277467,1764580241182,-1000.0,0.00015252,2]
[395277468,1764580241191,-1000.0,0.00015252,2]
[395277469,1764580241202,-2500.0,0.00015252,2]
[395277470,1764580241211,-1000.0,0.00015252,2]
[395277471,1764580241221,-1000.0,0.00015252,2]
[395277472,1764580241230,-1000.0,0.00015252,2]
[395277473,1764580241239,-2500.0,0.00015252,2]
[395277474,1764580241248,-1000.0,0.00015252,2]
[395277475,1764580241257,-1000.0,0.00015252,2]
[395277476,1764580241266,-2500.0,0.00015252,2]
[395277477,1764580241275,-1000.0,0.00015252,2]
[395277478,1764580241284,-1000.0,0.00015252,2]
[395277479,1764580241293,-1000.0,0.00015252,2]
[395277480,1764580241302,-1000.0,0.00015252,2]
[395277481,1764580241312,-1000.0,0.00015252,2]
[395277482,1764580241322,-500.0,0.00015252,2]
[395277483,1764580241331,-1000.0,0.00015252,2]
[395277484,1764580241340,-1000.0,0.00015252,2]
[395277485,1764580241350,-1000.0,0.00015252,2]
[395277486,1764580241359,-1000.0,0.00015252,2]
[395277487,1764580241369,-500.0,0.00015252,2]
[395277488,1764580241378,-1000.0,0.00015252,2]
[395277489,1764580241388,-1000.0,0.00015252,2]
[395277490,1764580241397,-500.0,0.00015252,2]
[395277491,1764580241407,-1000.0,0.00015252,2]
[395277492,1764580241416,-1000.0,0.00015252,2]
[395277493,1764580241426,-1000.0,0.00015252,2]
[395277494,1764580241435,-500.0,0.00015252,2]
[395277495,1764580241444,-1000.0,0.00015252,2]
[395277496,1764580241455,-1000.0,0.00015252,2]
[395277497,1764580241464,-578.20924308,0.00015252,2]
[395277498,1764580241474,-500.0,0.00015252,2]
[395277499,1764580241483,-1000.0,0.00015252,2]
[395277500,1764580241493,-1000.0,0.00015252,2]
[395277501,1764580241502,-500.0,0.00015252,2]
[395277502,1764580241512,-3000.0,0.00015252,2]
[395277503,1764580241522,-1000.0,0.00015252,2]
[395277504,1764580241531,-1000.0,0.00015252,2]
[395277505,1764580241540,-500.0,0.00015252,2]
[395277506,1764580241550,-3000.0,0.00015252,2]
[395277507,1764580241560,-1000.0,0.00015252,2]
[395277508,1764580241570,-1000.0,0.00015252,2]
[395277509,1764580241579,-151.0,0.00015252,2]
[395277510,1764580241589,-500.0,0.00015252,2]
[395277511,1764580241598,-3000.0,0.00015252,2]
[395277512,1764580241608,-1000.0,0.00015252,2]
[395277513,1764580241618,-1000.0,0.00015252,2]
[395277514,1764580241627,-500.0,0.00015252,2]
[395277515,1764580241636,-3000.0,0.00015252,2]
[395277516,1764580241645,-1000.0,0.00015252,2]
[395277517,1764580241654,-500.0,0.00015252,2]
[395277518,1764580241663,-3000.0,0.00015252,2]
[395277519,1764580241672,-1000.0,0.00015252,2]
[395277520,1764580241682,-500.0,0.00015252,2]
[395277521,1764580241692,-3000.0,0.00015252,2]
[395277522,1764580241701,-250.0,0.00015252,2]
[395277523,1764580241710,-1000.0,0.00015252,2]
[395277524,1764580241720,-500.0,0.00015252,2]